[Event "Late-Titled-Tuesday-Blitz-October-03-2023"]
[Site "Chess.com"]
[Date "2023.10.03"]
[Round "7"]
[White "rdarruda"]
[Black "Aswathchess"]
[Result "1/2-1/2"]
[WhiteElo "2476"]
[BlackElo "2596"]
[TimeControl "180+1"]
[EndTime "15:15:10 PDT"]
[Termination "Game drawn by repetition"]

1. Nf3 {[%clk 0:02:50.1]} 1... d5 {[%clk 0:02:59.4]} 2. d4 {[%clk 0:02:49.6]}
2... Nf6 {[%clk 0:02:57.6]} 3. c4 {[%clk 0:02:49.7]} 3... e6 {[%clk 0:02:58.1]}
4. e3 {[%clk 0:02:50.3]} 4... Nbd7 {[%clk 0:02:55.4]} 5. Nc3 {[%clk 0:02:50.4]}
5... g6 {[%clk 0:02:53.7]} 6. Bd3 {[%clk 0:02:50.1]} 6... Bg7 {[%clk 0:02:53.7]}
7. O-O {[%clk 0:02:50.4]} 7... O-O {[%clk 0:02:54.2]} 8. e4 {[%clk 0:02:51]}
8... dxe4 {[%clk 0:02:52.8]} 9. Nxe4 {[%clk 0:02:51.9]} 9... Nxe4 {[%clk
0:02:50.3]} 10. Bxe4 {[%clk 0:02:52.8]} 10... c5 {[%clk 0:02:49.7]} 11. Be3
{[%clk 0:02:50]} 11... Qc7 {[%clk 0:02:45.6]} 12. Rc1 {[%clk 0:02:46.9]} 12...
Rb8 {[%clk 0:02:42.3]} 13. Qd2 {[%clk 0:02:45.7]} 13... cxd4 {[%clk 0:02:39.1]}
14. Nxd4 {[%clk 0:02:40.4]} 14... Nc5 {[%clk 0:02:37.4]} 15. Bf3 {[%clk
0:02:30]} 15... a6 {[%clk 0:02:36.2]} 16. Bh6 {[%clk 0:02:24.2]} 16... e5 {[%clk
0:02:23.5]} 17. Bxg7 {[%clk 0:02:19.8]} 17... Kxg7 {[%clk 0:02:24.4]} 18. Nb3
{[%clk 0:02:16]} 18... Be6 {[%clk 0:02:18.5]} 19. Nxc5 {[%clk 0:02:11.7]} 19...
Qxc5 {[%clk 0:02:17.6]} 20. Qc3 {[%clk 0:02:02.7]} 20... Rfd8 {[%clk 0:02:14.5]}
21. Rfe1 {[%clk 0:02:01.9]} 21... f6 {[%clk 0:02:13.8]} 22. h3 {[%clk
0:01:57.1]} 22... b6 {[%clk 0:02:11.8]} 23. b4 {[%clk 0:01:55.3]} 23... Qd4
{[%clk 0:02:11.7]} 24. c5 {[%clk 0:01:49.9]} 24... bxc5 {[%clk 0:01:45.2]} 25.
bxc5 {[%clk 0:01:48.7]} 25... Bxa2 {[%clk 0:01:43.3]} 26. Qa5 {[%clk 0:01:39.6]}
26... Rb2 {[%clk 0:01:37]} 27. Rf1 {[%clk 0:01:35]} 27... Rd2 {[%clk 0:01:02.6]}
28. c6 {[%clk 0:01:25.1]} 28... e4 {[%clk 0:01:00.1]} 29. c7 {[%clk 0:01:21.8]}
29... Rc8 {[%clk 0:00:59.9]} 30. Qxa6 {[%clk 0:01:21.1]} 30... Qd7 {[%clk
0:00:43.5]} 31. Bg4 {[%clk 0:01:02.8]} 31... f5 {[%clk 0:00:43]} 32. Be2 {[%clk
0:00:54.4]} 32... Rxc7 {[%clk 0:00:41.1]} 33. Bb5 {[%clk 0:00:54.4]} 33... Qd8
{[%clk 0:00:29.7]} 34. Rxc7+ {[%clk 0:00:49]} 34... Qxc7 {[%clk 0:00:30.6]} 35.
Qa3 {[%clk 0:00:41.5]} 35... Bf7 {[%clk 0:00:27.2]} 36. Qe3 {[%clk 0:00:34.7]}
36... Qd6 {[%clk 0:00:25.8]} 37. h4 {[%clk 0:00:33.3]} 37... Rd4 {[%clk
0:00:23.1]} 38. g3 {[%clk 0:00:32.8]} 38... Rb4 {[%clk 0:00:21]} 39. Be2 {[%clk
0:00:31.6]} 39... Rb3 {[%clk 0:00:21]} 40. Qg5 {[%clk 0:00:31.3]} 40... h6
{[%clk 0:00:20.5]} 41. Qc1 {[%clk 0:00:31]} 41... e3 {[%clk 0:00:18.3]} 42. f4
{[%clk 0:00:23.2]} 42... Qf6 {[%clk 0:00:16.8]} 43. Rf3 {[%clk 0:00:21.7]} 43...
Qd4 {[%clk 0:00:15.9]} 44. Rf1 {[%clk 0:00:20]} 44... Rb2 {[%clk 0:00:15.8]} 45.
Rd1 {[%clk 0:00:19.5]} 45... Rd2 {[%clk 0:00:16.4]} 46. Re1 {[%clk 0:00:18.7]}
46... h5 {[%clk 0:00:15.8]} 47. Bf3 {[%clk 0:00:18.1]} 47... e2+ {[%clk
0:00:15.4]} 48. Kg2 {[%clk 0:00:17.4]} 48... Bd5 {[%clk 0:00:14.2]} 49. Bxd5
{[%clk 0:00:15.5]} 49... Qxd5+ {[%clk 0:00:15.1]} 50. Kf2 {[%clk 0:00:16.2]}
50... Qd4+ {[%clk 0:00:14.9]} 51. Kg2 {[%clk 0:00:15]} 51... Kh6 {[%clk
0:00:14.9]} 52. Qc8 {[%clk 0:00:13.6]} 52... Rd1 {[%clk 0:00:15.2]} 53. Qf8+
{[%clk 0:00:12.4]} 53... Kh7 {[%clk 0:00:15.3]} 54. Qf7+ {[%clk 0:00:12.3]}
54... Kh6 {[%clk 0:00:15.5]} 55. Qf8+ {[%clk 0:00:12.9]} 55... Qg7 {[%clk
0:00:14.1]} 56. Qxg7+ {[%clk 0:00:13.2]} 56... Kxg7 {[%clk 0:00:15]} 57. Rxe2
{[%clk 0:00:14.1]} 57... Rd7 {[%clk 0:00:13.2]} 58. Rf2 {[%clk 0:00:15]} 58...
Kf6 {[%clk 0:00:13.2]} 59. Re2 {[%clk 0:00:15.9]} 59... Re7 {[%clk 0:00:13.1]}
60. Kf2 {[%clk 0:00:16.8]} 60... Rxe2+ {[%clk 0:00:12.8]} 61. Kxe2 {[%clk
0:00:15.4]} 61... Ke6 {[%clk 0:00:13.2]} 62. Ke3 {[%clk 0:00:12.7]} 62... Kd5
{[%clk 0:00:09.9]} 63. Kd3 {[%clk 0:00:12.9]} 63... Kc5 {[%clk 0:00:10.3]} 64.
Kc3 {[%clk 0:00:13.3]} 64... Kd5 {[%clk 0:00:10.6]} 65. Kd3 {[%clk 0:00:13.6]}
65... Kc5 {[%clk 0:00:10.4]} 66. Kc3 {[%clk 0:00:13.8]} 66... Kd5 {[%clk
0:00:09.7]} 67. Kd3 {[%clk 0:00:14.1]} 1/2-1/2

[Event "Late-Titled-Tuesday-Blitz-October-03-2023"]
[Site "Chess.com"]
[Date "2023.10.03"]
[Round "7"]
[White "BigAl"]
[Black "BeanScreen"]
[Result "0-1"]
[WhiteElo "2552"]
[BlackElo "2727"]
[TimeControl "180+1"]
[EndTime "15:15:13 PDT"]
[Termination "BeanScreen won on time"]

1. Nf3 {[%clk 0:03:00]} 1... d5 {[%clk 0:03:00]} 2. g3 {[%clk 0:03:00.9]} 2...
Nd7 {[%clk 0:02:59.9]} 3. Bg2 {[%clk 0:03:01.6]} 3... e5 {[%clk 0:02:59.1]} 4.
d3 {[%clk 0:03:02.4]} 4... Ngf6 {[%clk 0:02:58.7]} 5. O-O {[%clk 0:03:03.2]}
5... Bd6 {[%clk 0:02:56.5]} 6. Nc3 {[%clk 0:03:02.9]} 6... c6 {[%clk 0:02:56.2]}
7. e4 {[%clk 0:03:03]} 7... O-O {[%clk 0:02:55.5]} 8. exd5 {[%clk 0:02:56.3]}
8... cxd5 {[%clk 0:02:55]} 9. Nb5 {[%clk 0:02:56.3]} 9... Bb8 {[%clk 0:02:50.2]}
10. c4 {[%clk 0:02:56.3]} 10... d4 {[%clk 0:02:45.7]} 11. Re1 {[%clk 0:02:55.4]}
11... a6 {[%clk 0:02:44.9]} 12. Na3 {[%clk 0:02:55.4]} 12... Re8 {[%clk
0:02:34.6]} 13. Nc2 {[%clk 0:02:53.4]} 13... Nc5 {[%clk 0:02:33.5]} 14. Nh4
{[%clk 0:02:14.4]} 14... Bd6 {[%clk 0:02:09.9]} 15. h3 {[%clk 0:02:02.5]} 15...
h6 {[%clk 0:02:08.4]} 16. b4 {[%clk 0:02:00.8]} 16... Na4 {[%clk 0:02:08]} 17.
Bd2 {[%clk 0:02:01.1]} 17... Nb2 {[%clk 0:01:22.6]} 18. Qf3 {[%clk 0:01:58.8]}
18... e4 {[%clk 0:01:19.3]} 19. dxe4 {[%clk 0:01:58.3]} 19... Nxc4 {[%clk
0:01:18.2]} 20. Qd3 {[%clk 0:01:35.6]} 20... Qc7 {[%clk 0:01:09.9]} 21. Nxd4
{[%clk 0:01:25.7]} 21... Nxd2 {[%clk 0:00:58.1]} 22. Qxd2 {[%clk 0:01:25.4]}
22... Qb6 {[%clk 0:00:52.4]} 23. Rab1 {[%clk 0:01:12.7]} 23... Be6 {[%clk
0:00:44.6]} 24. Nxe6 {[%clk 0:01:06.8]} 24... Rxe6 {[%clk 0:00:42.2]} 25. Nf5
{[%clk 0:01:05.3]} 25... Rd8 {[%clk 0:00:40.5]} 26. Qe3 {[%clk 0:00:48.6]} 26...
Bxb4 {[%clk 0:00:35.5]} 27. Qb3 {[%clk 0:00:26.4]} 27... Bxe1 {[%clk 0:00:30.1]}
28. Qxb6 {[%clk 0:00:26.5]} 28... Rxb6 {[%clk 0:00:29.8]} 29. Rxb6 {[%clk
0:00:27.4]} 29... Rd2 {[%clk 0:00:26]} 30. Rxb7 {[%clk 0:00:24.7]} 30... Bxf2+
{[%clk 0:00:26.2]} 31. Kf1 {[%clk 0:00:22.7]} 31... Nh5 {[%clk 0:00:15.5]} 32.
e5 {[%clk 0:00:13.6]} 32... Nxg3+ {[%clk 0:00:14.4]} 33. Nxg3 {[%clk 0:00:13.7]}
33... Bxg3 {[%clk 0:00:15.3]} 34. Rb8+ {[%clk 0:00:05.8]} 34... Kh7 {[%clk
0:00:15.4]} 35. Re8 {[%clk 0:00:06.2]} 35... Rf2+ {[%clk 0:00:14.1]} 36. Kg1
{[%clk 0:00:06.8]} 36... Re2 {[%clk 0:00:13.9]} 37. Re7 {[%clk 0:00:06.2]} 37...
Re1+ {[%clk 0:00:13.3]} 38. Bf1 {[%clk 0:00:06.6]} 38... Kg6 {[%clk 0:00:13.9]}
39. Kg2 {[%clk 0:00:04.8]} 39... Bxe5 {[%clk 0:00:14.2]} 40. Ra7 {[%clk
0:00:04.7]} 40... Bf6 {[%clk 0:00:13.1]} 41. Rxa6 {[%clk 0:00:04.9]} 41... h5
{[%clk 0:00:12.9]} 42. a4 {[%clk 0:00:05.3]} 42... Kh6 {[%clk 0:00:11.9]} 43. a5
{[%clk 0:00:05.4]} 43... Ra1 {[%clk 0:00:12.2]} 44. Ra8 {[%clk 0:00:05.8]} 44...
Ra2+ {[%clk 0:00:12.3]} 45. Kf3 {[%clk 0:00:05.8]} 45... Bd4 {[%clk 0:00:12.1]}
46. Bd3 {[%clk 0:00:05.9]} 46... g5 {[%clk 0:00:12.1]} 47. Ke4 {[%clk
0:00:06.1]} 47... Bf6 {[%clk 0:00:11.3]} 48. a6 {[%clk 0:00:06.6]} 48... Kg7
{[%clk 0:00:10.7]} 49. Rc8 {[%clk 0:00:05.6]} 49... Ra4+ {[%clk 0:00:10]} 50.
Ke3 {[%clk 0:00:05.6]} 50... g4 {[%clk 0:00:10.2]} 51. hxg4 {[%clk 0:00:05.9]}
51... hxg4 {[%clk 0:00:11.1]} 52. Rc7 {[%clk 0:00:06.8]} 52... Bg5+ {[%clk
0:00:10.3]} 53. Ke2 {[%clk 0:00:05.2]} 53... Bf4 {[%clk 0:00:10.7]} 54. Rd7
{[%clk 0:00:02.8]} 54... Ra2+ {[%clk 0:00:10.7]} 55. Kf1 {[%clk 0:00:02.4]}
55... Ra1+ {[%clk 0:00:09.4]} 56. Kg2 {[%clk 0:00:03.1]} 56... Ra3 {[%clk
0:00:09.5]} 57. Be4 {[%clk 0:00:03.2]} 57... Rxa6 {[%clk 0:00:08.8]} 58. Bd5
{[%clk 0:00:03]} 58... Rf6 {[%clk 0:00:08.7]} 0-1

[Event "Late-Titled-Tuesday-Blitz-October-03-2023"]
[Site "Chess.com"]
[Date "2023.10.03"]
[Round "7"]
[White "josiur"]
[Black "IngOscarArdila"]
[Result "1-0"]
[WhiteElo "2508"]
[BlackElo "2331"]
[TimeControl "180+1"]
[EndTime "15:15:14 PDT"]
[Termination "josiur won by resignation"]

1. e4 {[%clk 0:03:00.9]} 1... e5 {[%clk 0:02:59.8]} 2. Nf3 {[%clk 0:03:01.2]}
2... Nf6 {[%clk 0:03:00.2]} 3. Nc3 {[%clk 0:03:01.1]} 3... Nc6 {[%clk
0:03:00.4]} 4. Be2 {[%clk 0:03:01.4]} 4... Bb4 {[%clk 0:03:00.1]} 5. Nd5 {[%clk
0:03:00.9]} 5... Ba5 {[%clk 0:02:59.5]} 6. c3 {[%clk 0:03:00.2]} 6... d6 {[%clk
0:02:56.1]} 7. d3 {[%clk 0:02:57.4]} 7... Nxd5 {[%clk 0:02:53.5]} 8. exd5 {[%clk
0:02:57.3]} 8... Ne7 {[%clk 0:02:53.8]} 9. b4 {[%clk 0:02:54.8]} 9... Bb6 {[%clk
0:02:53.7]} 10. Qb3 {[%clk 0:02:52.6]} 10... O-O {[%clk 0:02:52.7]} 11. O-O
{[%clk 0:02:52.2]} 11... a5 {[%clk 0:02:44]} 12. b5 {[%clk 0:02:46.3]} 12... Bf5
{[%clk 0:02:37.2]} 13. a4 {[%clk 0:02:42.2]} 13... h6 {[%clk 0:02:34.4]} 14. Be3
{[%clk 0:02:38.3]} 14... Bxe3 {[%clk 0:02:31.7]} 15. fxe3 {[%clk 0:02:39.2]}
15... b6 {[%clk 0:02:30.4]} 16. e4 {[%clk 0:02:35.3]} 16... Bh7 {[%clk
0:02:27.1]} 17. Kh1 {[%clk 0:02:18.5]} 17... f5 {[%clk 0:02:25.5]} 18. Qc4
{[%clk 0:02:13.1]} 18... f4 {[%clk 0:02:22.2]} 19. Nxe5 {[%clk 0:02:11.4]} 19...
dxe5 {[%clk 0:02:14.7]} 20. d6+ {[%clk 0:02:11.2]} 20... Kh8 {[%clk 0:02:15.2]}
21. dxe7 {[%clk 0:02:08.5]} 21... Qxe7 {[%clk 0:02:15.7]} 22. Bg4 {[%clk
0:02:03]} 22... Bg8 {[%clk 0:02:14.3]} 23. Qc6 {[%clk 0:01:58.5]} 23... Rad8
{[%clk 0:02:13.6]} 24. Rf3 {[%clk 0:01:46.7]} 24... Rd6 {[%clk 0:02:11.7]} 25.
Qb7 {[%clk 0:01:46.2]} 25... Rfd8 {[%clk 0:02:08.8]} 26. d4 {[%clk 0:01:38.2]}
26... exd4 {[%clk 0:02:05.4]} 27. cxd4 {[%clk 0:01:39.1]} 27... Rxd4 {[%clk
0:02:05.6]} 28. Rxf4 {[%clk 0:01:39.5]} 28... Qe5 {[%clk 0:01:45]} 29. Rff1
{[%clk 0:01:27.8]} 29... Rd2 {[%clk 0:01:40.5]} 30. Rac1 {[%clk 0:01:16.6]}
30... Qg5 {[%clk 0:01:21.4]} 31. Bf3 {[%clk 0:01:13]} 31... Bb3 {[%clk
0:00:54.9]} 32. Qxc7 {[%clk 0:01:05.2]} 32... Bxa4 {[%clk 0:00:53.6]} 33. Qxb6
{[%clk 0:01:04.8]} 33... Bxb5 {[%clk 0:00:53.1]} 34. Rfe1 {[%clk 0:00:59.7]}
34... Be8 {[%clk 0:00:31.9]} 35. e5 {[%clk 0:00:48.4]} 35... Bh5 {[%clk
0:00:28.1]} 36. Bb7 {[%clk 0:00:27]} 36... a4 {[%clk 0:00:19.7]} 37. Qa5 {[%clk
0:00:07.8]} 37... Rd1 {[%clk 0:00:18.8]} 38. Rcxd1 {[%clk 0:00:07]} 38... Rxd1
{[%clk 0:00:17.4]} 39. Rxd1 {[%clk 0:00:05.8]} 39... Bxd1 {[%clk 0:00:17.3]} 40.
Qa8+ {[%clk 0:00:05.7]} 40... Kh7 {[%clk 0:00:14]} 41. Be4+ {[%clk 0:00:06.6]}
41... g6 {[%clk 0:00:14.3]} 42. Qb7+ {[%clk 0:00:06.7]} 42... Kh8 {[%clk
0:00:14.4]} 43. Qc8+ {[%clk 0:00:07.1]} 43... Kh7 {[%clk 0:00:13.7]} 44. Qd7+
{[%clk 0:00:07.3]} 44... Kh8 {[%clk 0:00:13.7]} 45. Qe8+ {[%clk 0:00:08]} 45...
Kh7 {[%clk 0:00:12.8]} 46. Qf7+ {[%clk 0:00:08]} 46... Kh8 {[%clk 0:00:13.1]}
47. Bd5 {[%clk 0:00:06.6]} 47... Qd8 {[%clk 0:00:07.6]} 48. h3 {[%clk
0:00:05.1]} 48... Bc2 {[%clk 0:00:06.7]} 49. Be6 {[%clk 0:00:04.3]} 49... Qd1+
{[%clk 0:00:04.5]} 50. Kh2 {[%clk 0:00:04.8]} 50... Qd8 {[%clk 0:00:03.4]} 51.
Bd5 {[%clk 0:00:05.1]} 51... a3 {[%clk 0:00:02.6]} 52. Bc4 {[%clk 0:00:05.5]}
52... a2 {[%clk 0:00:02.7]} 53. Bxa2 {[%clk 0:00:05]} 53... Bf5 {[%clk
0:00:03.6]} 54. Be6 {[%clk 0:00:04.6]} 54... Bxe6 {[%clk 0:00:03.3]} 55. Qxe6
{[%clk 0:00:05.5]} 55... Kg7 {[%clk 0:00:03.3]} 56. Kg3 {[%clk 0:00:05.3]} 56...
Qf8 {[%clk 0:00:03.5]} 57. Qd7+ {[%clk 0:00:05]} 57... Qf7 {[%clk 0:00:03.9]}
58. Qxf7+ {[%clk 0:00:05.1]} 58... Kxf7 {[%clk 0:00:04.8]} 59. Kf4 {[%clk
0:00:05.8]} 59... Ke6 {[%clk 0:00:05.4]} 60. Ke4 {[%clk 0:00:06.7]} 60... Ke7
{[%clk 0:00:04.9]} 61. g3 {[%clk 0:00:06.8]} 61... Kd7 {[%clk 0:00:05.8]} 62.
Kd5 {[%clk 0:00:07.1]} 62... Ke7 {[%clk 0:00:06.1]} 63. e6 {[%clk 0:00:07.6]}
63... g5 {[%clk 0:00:05]} 64. Ke5 {[%clk 0:00:08]} 64... h5 {[%clk 0:00:04.7]}
65. Kf5 {[%clk 0:00:08.2]} 65... g4 {[%clk 0:00:05.1]} 66. h4 {[%clk 0:00:08.3]}
66... Kf8 {[%clk 0:00:04.5]} 67. Kf6 {[%clk 0:00:08.7]} 67... Ke8 {[%clk
0:00:05]} 68. e7 {[%clk 0:00:09.3]} 68... Kd7 {[%clk 0:00:05.2]} 69. Kf7 {[%clk
0:00:10]} 1-0

[Event "Late-Titled-Tuesday-Blitz-October-03-2023"]
[Site "Chess.com"]
[Date "2023.10.03"]
[Round "7"]
[White "jimis98"]
[Black "santosalberto1987"]
[Result "1-0"]
[WhiteElo "2695"]
[BlackElo "2509"]
[TimeControl "180+1"]
[EndTime "15:15:18 PDT"]
[Termination "jimis98 won by resignation"]

1. d4 {[%clk 0:03:00.9]} 1... d5 {[%clk 0:03:00]} 2. Nf3 {[%clk 0:02:59.7]} 2...
Nf6 {[%clk 0:02:57.2]} 3. c4 {[%clk 0:02:59.6]} 3... c6 {[%clk 0:02:57.2]} 4. e3
{[%clk 0:02:58.7]} 4... Bf5 {[%clk 0:02:55.4]} 5. Nh4 {[%clk 0:02:57.1]} 5...
Bc8 {[%clk 0:02:51.2]} 6. Nc3 {[%clk 0:02:54.9]} 6... e6 {[%clk 0:02:50.5]} 7.
Nf3 {[%clk 0:02:54.5]} 7... Nbd7 {[%clk 0:02:49.6]} 8. Bd3 {[%clk 0:02:53.1]}
8... dxc4 {[%clk 0:02:49.2]} 9. Bxc4 {[%clk 0:02:54]} 9... b5 {[%clk 0:02:49.9]}
10. Bd3 {[%clk 0:02:45.8]} 10... Bb7 {[%clk 0:02:50.1]} 11. a3 {[%clk 0:02:46]}
11... a6 {[%clk 0:02:49.4]} 12. O-O {[%clk 0:02:45.8]} 12... c5 {[%clk
0:02:48.8]} 13. Be2 {[%clk 0:02:28.2]} 13... Be7 {[%clk 0:02:46.3]} 14. b3
{[%clk 0:02:27.5]} 14... O-O {[%clk 0:02:37.6]} 15. Bb2 {[%clk 0:02:26.2]} 15...
cxd4 {[%clk 0:02:34.1]} 16. Nxd4 {[%clk 0:02:20.4]} 16... Nc5 {[%clk 0:02:34]}
17. Bf3 {[%clk 0:02:16]} 17... Qb6 {[%clk 0:02:30]} 18. b4 {[%clk 0:02:14.9]}
18... Nce4 {[%clk 0:02:27.6]} 19. Nxe4 {[%clk 0:02:14.7]} 19... Bxe4 {[%clk
0:02:13.5]} 20. Bxe4 {[%clk 0:02:12.9]} 20... Nxe4 {[%clk 0:02:14.4]} 21. Qd3
{[%clk 0:02:13.4]} 21... Nd6 {[%clk 0:02:13.4]} 22. Nb3 {[%clk 0:02:09.5]} 22...
Nc4 {[%clk 0:02:12]} 23. Bd4 {[%clk 0:02:09.8]} 23... Qd6 {[%clk 0:02:04.5]} 24.
Qe2 {[%clk 0:02:09.7]} 24... e5 {[%clk 0:01:51.3]} 25. Bc5 {[%clk 0:02:09.1]}
25... Qe6 {[%clk 0:01:51.5]} 26. a4 {[%clk 0:02:00.8]} 26... Rfd8 {[%clk
0:01:31.6]} 27. h3 {[%clk 0:01:57.8]} 27... h6 {[%clk 0:01:31.1]} 28. a5 {[%clk
0:01:51.3]} 28... Rac8 {[%clk 0:01:11.8]} 29. Rad1 {[%clk 0:01:48.6]} 29... Rxd1
{[%clk 0:00:51.1]} 30. Rxd1 {[%clk 0:01:49.5]} 30... Rd8 {[%clk 0:00:50.5]} 31.
Rxd8+ {[%clk 0:01:43.7]} 31... Bxd8 {[%clk 0:00:51.4]} 32. Qd3 {[%clk
0:01:32.4]} 32... Bc7 {[%clk 0:00:49.7]} 33. Qe4 {[%clk 0:01:31.7]} 33... f5
{[%clk 0:00:31.7]} 34. Qb7 {[%clk 0:01:31]} 34... Qd7 {[%clk 0:00:31.7]} 35. Qf3
{[%clk 0:00:47]} 35... e4 {[%clk 0:00:31.2]} 36. Qe2 {[%clk 0:00:44.3]} 36...
Qd3 {[%clk 0:00:30.5]} 37. Qxd3 {[%clk 0:00:41.9]} 37... exd3 {[%clk 0:00:31.4]}
38. Kf1 {[%clk 0:00:41.9]} 38... Be5 {[%clk 0:00:28.1]} 39. Bd4 {[%clk
0:00:40.4]} 39... Bd6 {[%clk 0:00:28.3]} 40. Bc5 {[%clk 0:00:39.2]} 40... Be5
{[%clk 0:00:28.5]} 41. Bd4 {[%clk 0:00:22.2]} 41... Bd6 {[%clk 0:00:28.5]} 42.
Bc3 {[%clk 0:00:21.7]} 42... Kf7 {[%clk 0:00:26.8]} 43. Ke1 {[%clk 0:00:21.4]}
43... g6 {[%clk 0:00:25.8]} 44. Kd1 {[%clk 0:00:20.6]} 44... Ke6 {[%clk
0:00:25.7]} 45. Nc1 {[%clk 0:00:20.5]} 45... d2 {[%clk 0:00:22.3]} 46. Nd3
{[%clk 0:00:12.5]} 46... Kd5 {[%clk 0:00:22.1]} 47. Bxd2 {[%clk 0:00:12.9]}
47... Nxd2 {[%clk 0:00:20.7]} 48. Kxd2 {[%clk 0:00:13.8]} 48... Kc4 {[%clk
0:00:21.3]} 49. Kc2 {[%clk 0:00:14.4]} 49... Bxb4 {[%clk 0:00:21.4]} 50. Ne5+
{[%clk 0:00:14.6]} 50... Kd5 {[%clk 0:00:20.4]} 51. Nxg6 {[%clk 0:00:15.5]}
51... Bxa5 {[%clk 0:00:21]} 52. Ne7+ {[%clk 0:00:13.2]} 52... Ke6 {[%clk
0:00:20.7]} 53. Nc6 {[%clk 0:00:13.6]} 53... Bb6 {[%clk 0:00:19.3]} 54. g4
{[%clk 0:00:10.2]} 54... fxg4 {[%clk 0:00:18]} 55. hxg4 {[%clk 0:00:11.1]} 55...
Kd6 {[%clk 0:00:18.2]} 56. Nd4 {[%clk 0:00:04.6]} 56... Bxd4 {[%clk 0:00:17.9]}
57. exd4 {[%clk 0:00:05.5]} 57... Kd5 {[%clk 0:00:17.9]} 58. Kd3 {[%clk
0:00:06.2]} 58... a5 {[%clk 0:00:17.2]} 59. f4 {[%clk 0:00:06.2]} 59... a4
{[%clk 0:00:17.6]} 60. g5 {[%clk 0:00:05.8]} 60... hxg5 {[%clk 0:00:15.7]} 61.
fxg5 {[%clk 0:00:06.7]} 61... a3 {[%clk 0:00:15.4]} 62. Kc2 {[%clk 0:00:05.5]}
62... b4 {[%clk 0:00:12.1]} 63. g6 {[%clk 0:00:04.1]} 63... Ke6 {[%clk 0:00:09]}
64. d5+ {[%clk 0:00:04.4]} 64... Kxd5 {[%clk 0:00:07]} 65. g7 {[%clk 0:00:04.2]}
65... Kc4 {[%clk 0:00:07.1]} 66. g8=Q+ {[%clk 0:00:04.2]} 1-0

[Event "Late-Titled-Tuesday-Blitz-October-03-2023"]
[Site "Chess.com"]
[Date "2023.10.03"]
[Round "7"]
[White "rookoco"]
[Black "Mykola-Bortnyk"]
[Result "1-0"]
[WhiteElo "2773"]
[BlackElo "2934"]
[TimeControl "180+1"]
[EndTime "15:15:21 PDT"]
[Termination "rookoco won on time"]

1. e4 {[%clk 0:03:00.9]} 1... Nf6 {[%clk 0:02:58.4]} 2. e5 {[%clk 0:02:59.7]}
2... Nd5 {[%clk 0:02:58.5]} 3. d4 {[%clk 0:03:00.2]} 3... d6 {[%clk 0:02:59.2]}
4. Nf3 {[%clk 0:03:00.3]} 4... dxe5 {[%clk 0:02:59.9]} 5. Nxe5 {[%clk 0:03:00]}
5... c6 {[%clk 0:03:00.6]} 6. Be2 {[%clk 0:02:59.8]} 6... Bf5 {[%clk 0:03:01.1]}
7. O-O {[%clk 0:02:59.2]} 7... Nd7 {[%clk 0:03:01.1]} 8. Nf3 {[%clk 0:02:59.3]}
8... e6 {[%clk 0:03:00.7]} 9. a3 {[%clk 0:02:59.5]} 9... Bd6 {[%clk 0:03:00.6]}
10. Re1 {[%clk 0:02:59.8]} 10... O-O {[%clk 0:03:00]} 11. Bf1 {[%clk 0:02:59.4]}
11... Re8 {[%clk 0:02:49.3]} 12. c4 {[%clk 0:02:58.5]} 12... N5f6 {[%clk
0:02:49.4]} 13. Nc3 {[%clk 0:02:58.1]} 13... h6 {[%clk 0:02:47.1]} 14. h3 {[%clk
0:02:54]} 14... e5 {[%clk 0:02:38]} 15. d5 {[%clk 0:02:40.2]} 15... Qc7 {[%clk
0:02:31.9]} 16. b4 {[%clk 0:02:37.2]} 16... e4 {[%clk 0:02:18.4]} 17. Nd4 {[%clk
0:02:32.2]} 17... Bg6 {[%clk 0:02:18.3]} 18. c5 {[%clk 0:02:30.9]} 18... Bh2+
{[%clk 0:02:18.5]} 19. Kh1 {[%clk 0:02:30.9]} 19... cxd5 {[%clk 0:02:15]} 20. g3
{[%clk 0:02:20.3]} 20... Bxg3 {[%clk 0:02:15]} 21. Ndb5 {[%clk 0:02:19.8]} 21...
Qe5 {[%clk 0:02:11.7]} 22. fxg3 {[%clk 0:02:19.4]} 22... a6 {[%clk 0:02:08]} 23.
Bf4 {[%clk 0:02:17.9]} 23... Qe7 {[%clk 0:01:36.2]} 24. Bd6 {[%clk 0:02:16.7]}
24... Qe6 {[%clk 0:01:24.1]} 25. Nd4 {[%clk 0:02:13.2]} 25... Bh5 {[%clk
0:01:24.3]} 26. g4 {[%clk 0:02:08.4]} 26... Nxg4 {[%clk 0:01:10.7]} 27. hxg4
{[%clk 0:02:05]} 27... Qf6 {[%clk 0:00:56.6]} 28. gxh5 {[%clk 0:02:01.9]} 28...
Ne5 {[%clk 0:00:56.8]} 29. Ra2 {[%clk 0:01:57]} 29... Nd3 {[%clk 0:00:53.8]} 30.
Bxd3 {[%clk 0:01:17.6]} 30... exd3 {[%clk 0:00:53.8]} 31. Rxe8+ {[%clk
0:00:59.9]} 31... Rxe8 {[%clk 0:00:54.7]} 32. Nf3 {[%clk 0:00:53.3]} 32... Qxc3
{[%clk 0:00:53.1]} 33. Rg2 {[%clk 0:00:51.7]} 33... d2 {[%clk 0:00:40.1]} 34.
Be5 {[%clk 0:00:44.9]} 34... Rxe5 {[%clk 0:00:34.6]} 35. Nxe5 {[%clk 0:00:45.8]}
35... Qh3+ {[%clk 0:00:33.5]} 36. Kg1 {[%clk 0:00:44.8]} 36... Qe3+ {[%clk
0:00:33.8]} 37. Kf1 {[%clk 0:00:41.6]} 37... Qxe5 {[%clk 0:00:31.3]} 38. Qxd2
{[%clk 0:00:37.1]} 38... Qxh5 {[%clk 0:00:29.3]} 39. Qc3 {[%clk 0:00:35.3]}
39... Qd1+ {[%clk 0:00:26.8]} 40. Kf2 {[%clk 0:00:34.6]} 40... d4 {[%clk
0:00:25.9]} 41. Qg3 {[%clk 0:00:32.2]} 41... Qd2+ {[%clk 0:00:22.2]} 42. Kg1
{[%clk 0:00:31.1]} 42... Qd1+ {[%clk 0:00:22.9]} 43. Kh2 {[%clk 0:00:28.5]}
43... Qh5+ {[%clk 0:00:23.6]} 44. Qh3 {[%clk 0:00:28.7]} 44... Qe5+ {[%clk
0:00:24.3]} 45. Kh1 {[%clk 0:00:28.1]} 45... Qe1+ {[%clk 0:00:21.6]} 46. Rg1
{[%clk 0:00:28.6]} 46... Qe4+ {[%clk 0:00:22.3]} 47. Kh2 {[%clk 0:00:28.7]}
47... d3 {[%clk 0:00:19.2]} 48. Qg4 {[%clk 0:00:25.5]} 48... Qe5+ {[%clk
0:00:17.5]} 49. Kg2 {[%clk 0:00:18]} 49... h5 {[%clk 0:00:15.8]} 50. Qf3 {[%clk
0:00:15.3]} 50... Qg5+ {[%clk 0:00:07.2]} 51. Kh2 {[%clk 0:00:10.3]} 51... Qh4+
{[%clk 0:00:07.4]} 52. Qh3 {[%clk 0:00:09.4]} 52... Qf2+ {[%clk 0:00:06.5]} 53.
Rg2 {[%clk 0:00:09.5]} 53... Qf4+ {[%clk 0:00:04.9]} 54. Qg3 {[%clk 0:00:09.9]}
54... Qd4 {[%clk 0:00:05.4]} 55. Rd2 {[%clk 0:00:06.7]} 55... h4 {[%clk
0:00:04.2]} 56. Qxd3 {[%clk 0:00:06.8]} 56... Qf4+ {[%clk 0:00:04.7]} 57. Kh3
{[%clk 0:00:07]} 57... g5 {[%clk 0:00:03.2]} 58. Qd8+ {[%clk 0:00:06.5]} 58...
Kh7 {[%clk 0:00:03.9]} 59. Qd3+ {[%clk 0:00:06.8]} 59... Kg8 {[%clk 0:00:03.4]}
60. Kg2 {[%clk 0:00:07.2]} 60... Qg4+ {[%clk 0:00:03.9]} 61. Kf2 {[%clk
0:00:07.1]} 61... Qf4+ {[%clk 0:00:03.7]} 62. Ke2 {[%clk 0:00:07.6]} 62... Qg4+
{[%clk 0:00:03.3]} 63. Qf3 {[%clk 0:00:07.6]} 63... Qe6+ {[%clk 0:00:04.1]} 64.
Kd1 {[%clk 0:00:07.5]} 64... h3 {[%clk 0:00:04]} 65. Rh2 {[%clk 0:00:05.6]}
65... g4 {[%clk 0:00:04.3]} 66. Qg3 {[%clk 0:00:05.7]} 66... Qd5+ {[%clk
0:00:02.9]} 67. Kc1 {[%clk 0:00:05.7]} 67... Qc4+ {[%clk 0:00:03.1]} 68. Kb2
{[%clk 0:00:06.1]} 68... f5 {[%clk 0:00:02.7]} 69. Rd2 {[%clk 0:00:03.6]} 69...
Qf7 {[%clk 0:00:01.8]} 70. Rd8+ {[%clk 0:00:02]} 70... Kg7 {[%clk 0:00:02.1]}
71. Qe5+ {[%clk 0:00:02.3]} 71... Qf6 {[%clk 0:00:02.8]} 72. Rd7+ {[%clk
0:00:02.6]} 72... Kg6 {[%clk 0:00:02.4]} 73. Rd6 {[%clk 0:00:03.3]} 73... Qxd6
{[%clk 0:00:02.8]} 74. cxd6 {[%clk 0:00:04.2]} 1-0